Cogmind - Beta 14 @@@ ROGUE MODE // 2024.10.03 @ 16:38:28 Player: THN-L0C Result: Destroyed by P-60 Hacker with Shock Rifle Performance ------------- Evolutions (0) 0 Regions Visited (3) 600 Robots Destroyed (28) 140 Value Destroyed (703) 703 Prototype IDs (11) 220 Alien Tech Used (0) 0 Bonus (0) 0 TOTAL SCORE: 1663 Bonus ------- None Cogmind --------- Core Integrity 0/250 Matter 288/300 Energy 265/265 System Corruption 1% Temperature Cool (82) Movement Rolling (120) Ox1 Location -9/Recycling Parts ------- > --- POWER (1) -------- Improved Ion Engine > --- PROPULSION (2) --- Improved Treads Subdweller Monowheel > --- UTILITY (2) ------ Large Storage Unit Improved Terrain Scanner > --- WEAPON (2) ------- Makeshift Laser Barrage Gun > --- INVENTORY (15) --- Improved Ion Engine Improved Ion Engine Subdweller Power Source Cargo Legs Subdweller Monowheel Seismic Detector Light Armor Plating Subdweller Beam Cannon Heavy Assault Rifle Shotgun Grenade Launcher Multitool Flail Flail Peak State ------------ > --- POWER ------------ Improved Ion Engine > --- PROPULSION ------- Subdweller Monowheel Subdweller Monowheel > --- UTILITY ---------- Large Storage Unit Improved Terrain Scanner > --- WEAPON ----------- Makeshift Laser Barrage Gun > --- INVENTORY -------- Improved Ion Engine Improved Ion Engine Subdweller Power Source Cargo Legs Subdweller Monowheel Seismic Detector Subdweller Beam Cannon Shotgun Shotgun Grenade Launcher Multitool Flail Flail [Rating: 20] Favorites ----------- Power Improved Ion Engine Engine Improved Ion Engine Propulsion Subdweller Monowheel Treads Light Treads Wheel Subdweller Monowheel Utility Large Storage Unit Device Seismic Detector Storage Large Storage Unit Weapon Shotgun Energy Gun Makeshift Laser Energy Cannon Subdweller Beam Cannon Ballistic Gun Shotgun Launcher Grenade Launcher Impact Weapon Flail Build | -11 -10 -10 -9 ------- Run | Yrd Mat Sub Rec Slots Evolved . | . . . . Power . | . . . . Propulsion . | . . . . Utility . | . . . . Weapon . | . . . . Parts Attached 29 | 8 4 14 3 Power 4 | 2 1 1 . Engine 4 | 2 1 1 . Core . | . . . . Reactor . | . . . . Propulsion 5 | 2 . 2 1 Treads 3 | 2 . . 1 Leg . | . . . . Wheel 2 | . . 2 . Hover . | . . . . Flight . | . . . . Utility 4 | 2 1 1 . Device 2 | 1 . 1 . Storage 2 | 1 1 . . Processor . | . . . . Hackware . | . . . . Protection . | . . . . Artifact . | . . . . Weapon 16 | 2 2 10 2 Energy Gun 1 | . . . 1 Energy Cannon 1 | . . 1 . Ballistic Gun 10 | 2 2 5 1 Ballistic Cannon . | . . . . Launcher 1 | . . 1 . Special Weapon . | . . . . Impact Weapon 3 | . . 3 . Slashing Weapon . | . . . . Piercing Weapon . | . . . . Special Melee Weapon . | . . . . Unidentified Prototypes . | . . . . Parts Lost 4 | . . 3 1 Power 1 | . . 1 . Propulsion 3 | . . 2 1 Utility . | . . . . Weapon . | . . . . Highest Loss Streak 2 | . . 2 1 To Critical Strikes . | . . . . Average Slot Usage (%) 91 | . 100 89 96 Engine 14 | . 14 14 14 Treads 6 | . 28 1 8 Wheel 13 | . . 16 16 Device 14 | . 14 14 14 Storage 14 | . 14 14 14 Ballistic Gun 18 | . 28 17 12 Impact Weapon 8 | . . 10 . Peak Build Rating 20 | 7 12 19 20 Average Rating 14 | 5 9 15 19 On Entrance 9 | . 7 11 18 Naked Turns . | . . . . Heaviest Build 38 | 14 34 38 38 Greatest Support 40 | 40 40 40 40 Greatest Overweight (x) 1 | . . 1 1 Average Overweight (x) . | . . . . Largest Inventory Capacity 15 | 8 15 15 15 Average Capacity 14 | 7 13 15 15 Most Carried 15 | 2 14 15 15 Average Carried 12 | . 7 14 14 Final Capacity 15 | 8 15 15 15 Final Carried 15 | 2 9 14 15 Class Distribution -------------------- 100% | Mutant Dominant Class ---------------- Mutant | -10/Materials Mutant | -10/Subcaves Mutant | -9/Recycling Resources | -11 -10 -10 -9 ----------- Run | Yrd Mat Sub Rec Matter Collected 1026 | 308 285 358 75 Remotely . | . . . . Salvage Created 764 | 112 308 279 65 Parts 51 | 5 24 17 5 Haulers Intercepted . | . . . . Recyclers Shooed 1 | 1 . . . Parts Field Recycled . | . . . . Retrieved Matter . | . . . . Parts Self-Destructed 11 | . . 11 . Prevented . | . . . . Kills | -11 -10 -10 -9 ------- Run | Yrd Mat Sub Rec Combat Hostiles Destroyed 25 | . 13 10 2 Guns 20 | . 13 5 2 AOE 5 | . . 5 . Classes Destroyed 8 | 2 3 2 1 Tunneler 1 | 1 . . . Recycler 1 | 1 . . . Watcher 1 | . 1 . . Swarmer 11 | . 9 1 1 Grunt 4 | . 4 . . Sentry 1 | . . . 1 Artisan 1 | . . 1 . Subdweller 9 | . . 9 . Best Kill Streak 5 | 1 5 3 1 Combat Bots Only 5 | . 5 3 1 Max Kills in Single Turn 2 | 1 2 2 1 Gunslinging . | . . . . Exploded 2 | . . 2 . Melee . | . . . . Uniques/NPCs Destroyed . | . . . . Combat | -11 -10 -10 -9 -------- Run | Yrd Mat Sub Rec Hostile Shots Fired 101 | . 60 22 19 Missed 22 | . 11 6 5 Damage Taken 1015 | . 457 347 211 Core 251 | . 92 98 61 Absorbed by Shields . | . . . . Core Remaining (%) 100 | 100 . . . Volleys Fired 92 | 8 40 36 8 Largest 2 | 2 2 2 2 Hottest 80 | 40 46 80 78 Shots Fired 171 | 16 80 59 16 Gun 160 | 16 80 48 16 Cannon 4 | . . 4 . Launcher 7 | . . 7 . Special . | . . . . Kinetic 152 | 16 80 48 8 Thermal 12 | . . 4 8 Explosive 7 | . . 7 . Electromagnetic . | . . . . Robot Hit Streak 11 | 3 6 11 4 Robot Miss Streak 6 | 2 6 3 2 Penetration Max . | . . . . Secondary Targets 1 | . . 1 . Max Gunslinging Chain 1 | . . 1 . Shots Hit Robots 117 | 9 51 46 11 Core Hits 57 | 3 22 28 4 Critical Kills 1 | . 1 . . Critical Parts Destroyed . | . . . . Critical Strikes 2 | . 1 . 1 Burn 1 | . . . 1 Destroy 1 | . 1 . . Melee Attacks 13 | . . 13 . Impact 13 | . . 13 . Slashing . | . . . . Piercing . | . . . . Sneak Attacks 1 | . . 1 . Combat Hostiles . | . . . . Follow-up Attacks . | . . . . Damage Inflicted 2156 | 109 652 1193 202 Guns 1551 | 109 652 588 202 Cannons . | . . . . Explosions 605 | . . 605 . Melee . | . . . . Ramming . | . . . . Kinetic 1476 | 109 652 588 127 Thermal 75 | . . . 75 Explosive 605 | . . 605 . Electromagnetic . | . . . . Impact . | . . . . Slashing . | . . . . Piercing . | . . . . Highest Corruption . | . . . . Average Corruption . | . . . . Corruption Purged . | . . . . Corruption Blocked . | . . . . Overload Shots . | . . . . Overflow Damage . | . . . . Projectiles . | . . . . Explosions . | . . . . Melee . | . . . . Knockbacks . | . . . . Impact . | . . . . Kinetic . | . . . . Secondary . | . . . . Self-Inflicted Damage 41 | . . 41 . Shots 3 | . . 3 . Rammed . | . . . . Targets Rammed . | . . . . Kicked . | . . . . Crushed . | . . . . Highest Temperature 169 | . 12 4 169 Average Temperature 42 | . 6 2 78 Received Heat Transfer 282 | . 135 66 81 Siege Activations . | . . . . Robots Corrupted . | . . . . Combat Hostiles . | . . . . Parts Fried . | . . . . Impact Corruptions . | . . . . Robots Melted . | . . . . Combat Hostiles . | . . . . Parts Melted 1 | . . . 1 Heat Transferred 213 | . . . 213 Parts Sabotaged . | . . . . Parts Stolen . | . . . . Parts Stripped . | . . . . Power Chain Reactions . | . . . . Alert | -11 -10 -10 -9 ------- Run | Yrd Mat Sub Rec Peak Influence 252 | 10 252 . 40 Initial 6 | . 6 . . Average 82 | 2 100 . 17 Maximum Alert Level 1 | . 1 . . Low Security (%) 81 | 100 77 . 100 Level 1 18 | . 22 . . Level 2 . | . . . . Level 3 . | . . . . Level 4 . | . . . . Level 5 . | . . . . High Security . | . . . . Max Security . | . . . . Squads Dispatched 2 | . 2 . . Investigation 1 | . 1 . . Extermination . | . . . . Reinforcement 1 | . 1 . . Assault . | . . . . Garrison . | . . . . Intercept . | . . . . Searches Triggered . | . . . . Construction Impeded . | . . . . Haulers Reinforced . | . . . . Active Scanning Responses . | . . . . Cargo Convoy Interrupts . | . . . . Stealth | -11 -10 -10 -9 --------- Run | Yrd Mat Sub Rec Distress Signals 4 | . 4 . . Communications Jammed . | . . . . Distress Signals . | . . . . Times Spotted 50 | . 29 13 8 Peak Tracking Total 7 | . 5 4 7 Tactical Retreats 3 | . 3 . . Traps | -11 -10 -10 -9 ------- Run | Yrd Mat Sub Rec Traps Triggered 1 | . 1 . . Indirectly . | . . . . Trap Hack Attempts . | . . . . Triggered . | . . . . Disarmed . | . . . . Reprogrammed . | . . . . Reused . | . . . . Traps Extracted . | . . . . Installed . | . . . . Triggered . | . . . . Machines | -11 -10 -10 -9 ---------- Run | Yrd Mat Sub Rec Machines Disabled 2 | . 1 1 . Max in Single Turn 1 | . 1 1 . Machines Repaired . | . . . . Machines Dismantled . | . . . . Machines Sabotaged . | . . . . Overloaded Fab Kills . | . . . . Hacking | -11 -10 -10 -9 --------- Run | Yrd Mat Sub Rec Machines Accessed 8 | . 5 3 . Terminals 5 | . 5 . . Fabricators . | . . . . Repair Stations . | . . . . Recycling Units . | . . . . Scanalyzers . | . . . . Garrison Access . | . . . . Total Hacks 31 | . 17 14 . Successful 24 | . 10 14 . Failed 7 | . 7 . . Catastrophic . | . . . . Database Lockouts . | . . . . Manual 17 | . 17 . . Terminals 17 | . 17 . . Fabricators . | . . . . Repair Stations . | . . . . Recycling Units . | . . . . Scanalyzers . | . . . . Garrison Access . | . . . . Terminal Hacks 14 | . . 14 . Record 12 | . . 12 . Open Door 1 | . . 1 . Derelict Proto ID Bank 1 | . . 1 . Fabricator Hacks . | . . . . Repair Station Hacks . | . . . . Recycling Unit Hacks . | . . . . Scanalyzer . | . . . . Garrison Access Hacks . | . . . . Unauthorized Hacks 10 | . 10 . . Terminals 10 | . 10 . . Assimilate 2 | . 2 . . Botnet 3 | . 3 . . Skim 5 | . 5 . . Fabricators . | . . . . Repair Stations . | . . . . Recycling Units . | . . . . Scanalyzers . | . . . . Garrison Access . | . . . . Data Cores Recovered . | . . . . Used . | . . . . Hacking Detections 5 | . 5 . . Full Trace Events . | . . . . Feedback Events . | . . . . Feedback Blocked . | . . . . Robot Schematics Acquired . | . . . . Robots Built . | . . . . Authchips . | . . . . Time . | . . . . Total Robot Build Rating . | . . . . Part Schematics Acquired . | . . . . Parts Built . | . . . . Authchips . | . . . . Time . | . . . . Total Part Build Rating . | . . . . Parts Repaired . | . . . . Time . | . . . . Parts Recycled . | . . . . Recycled Matter . | . . . . Retrieved Matter . | . . . . Retrieved Components . | . . . . Parts Scanalyzed . | . . . . Part Schematics Acquired . | . . . . Parts Damaged . | . . . . Bothacking | -11 -10 -10 -9 ------------ Run | Yrd Mat Sub Rec Used RIF Installer . | . . . . Robots Hacked . | . . . . Non-combat . | . . . . Combat . | . . . . Robot Hacks Applied . | . . . . Relay Couplers Released . | . . . . Fabnet Peak Effective % . | . . . . Robots Rewired . | . . . . Allies Hacked . | . . . . Hacks Repelled . | . . . . Allies | -11 -10 -10 -9 -------- Run | Yrd Mat Sub Rec Total Allies 1 | . 1 . . Largest Group 1 | . 1 . . Highest-Rated Group 10 | . 10 . . Highest-Rated Ally 10 | . 10 . . Total Orders . | . . . . Ally Attacks . | . . . . Total Damage . | . . . . Kills . | . . . . Allies Corrupted . | . . . . Allies Melted . | . . . . Intel | -11 -10 -10 -9 ------- Run | Yrd Mat Sub Rec Robot Analysis Total . | . . . . Derelict Logs Recovered 1 | . . 1 . Drone Launches . | . . . . Drone Recoveries . | . . . . Exploration | -11 -10 -10 -9 ------------- Run | Yrd Mat Sub Rec Turns Passed 6134 | 115 993 4894 132 Spaces Moved 1885 | 51 519 1234 81 Core 3 | 3 . . . Treads 728 | 48 519 161 . Legs . | . . . . Wheels 1154 | . . 1073 81 Hover . | . . . . Flight . | . . . . Fastest Speed 50 | 50 160 110 110 Average Speed 135 | 153 160 125 119 Slowest Speed 240 | 160 160 240 120 Overloaded Moves . | . . . . Propulsion Burnouts . | . . . . Robots Hopped . | . . . . Cave-ins Triggered . | . . . . Exploration Rate (%) 38 | 5 73 57 20 Regions Visited 3 Branch Regions 2 Pre-discovered Areas 3 | . 1 2 . Known Exits Taken 1 | . 1 . . Unknown Exits Taken 2 | 1 . 1 . Scrap Searched 3 | . . 3 . Spaces Dug 4 | . . 4 . Terrain Destroyed 36 | . . 36 . Melee . | . . . . Projectile 4 | . . 4 . AOE 32 | . . 32 . Terrain Rammed . | . . . . Walls Destroyed . | . . . . Machines Disabled . | . . . . Actions | -11 -10 -10 -9 --------- Run | Yrd Mat Sub Rec Total 5277 | 69 606 4502 100 Wait 3230 | 2 29 3194 5 Move 1882 | 50 518 1233 81 Hop . | . . . . Pick Up 20 | 1 9 8 2 Fast Attach 8 | 7 . . 1 Attach 3 | . . 3 . Detach . | . . . . Swap 18 | 1 4 11 2 Drop 10 | . 6 3 1 Fire 92 | 8 40 36 8 Melee 13 | . . 13 . Ram . | . . . . Kick . | . . . . Crush . | . . . . Escape Stasis . | . . . . Rewire 1 | . . 1 . Trap . | . . . . Miscellaneous . | . . . . Route ------- -11/Scrapyard -10/Materials (discovered 6 exits: *Mat x3 / *Min x2 / *Sub) -10/Subcaves (discovered 2 exits: [*Mat] / [*Rec]) -9/Recycling (discovered 1 exit: Fac) History --------- Turn | Location | Event 6 | -11/Scrapyard | Discovered new exit (range 16) 116 | -11/Scrapyard | Entered Materials 205 | -10/Materials | Discovered new exit (range 15) 250 | -10/Materials | Discovered new exit (range 8) 307 | -10/Materials | Build established: Mutant 410 | -10/Materials | Discovered new exit (range 16) 631 | -10/Materials | Loaded intel: 9 trap records 677 | -10/Materials | Learned location of Recycling (-9) 715 | -10/Materials | Identified exit to Materials 715 | -10/Materials | Identified exit to Subcaves 759 | -10/Materials | Loaded intel: 8 terminal locations 767 | -10/Materials | Learned location of 1 exit from Recycling 786 | -10/Materials | Identified exit to Mines 814 | -10/Materials | Learned location of 1 exit from Storage 853 | -10/Materials | Learned location of 1 exit from Storage 1109 | -10/Materials | Entered Subcaves 1140 | -10/Subcaves | A swath of the cavern ceiling suddenly collapsed 1298 | -10/Subcaves | Learned location of Storage (-9) 1503 | -10/Subcaves | Core integrity fell below 50% 1558 | -10/Subcaves | Discovered new exit (range 3) 1592 | -10/Subcaves | Visited Clippyterm 1799 | -10/Subcaves | A Subdweller sparked back to life 1817 | -10/Subcaves | A swath of the cavern ceiling suddenly collapsed 2294 | -10/Subcaves | Learned location of Deep Caves (-7) 2294 | -10/Subcaves | Learned Factory emergency access door positions 2483 | -10/Subcaves | Visited 4L-MR0's lab 2498 | -10/Subcaves | Found Cargo Legs 3416 | -10/Subcaves | Shifting Twisted Machinery released Barrage Gun 5998 | -10/Subcaves | Discovered new exit (range 5) 6003 | -10/Subcaves | Entered Recycling 6004 | -9/Recycling | Identified exit to Factory 6022 | -9/Recycling | Core integrity fell below 20% 6135 | -9/Recycling | Destroyed by P-60 Hacker with Shock Rifle Last Messages --------------- LOCATION=UNKNOWN GOAL=ESCAPE Loading 1 Recycling exit... 06008_ Y-45 Defender springs to life. 06021_ Critical hit (Burn: +37). 06027_ Sub. Monowheel destroyed. 06029_ Y-45 Defender suffers critical hit (Burn). 06029_ Imp. Ion Engine melted. 06029_ Y-45 Defender destroyed. 06031_ Acquired 52 matter. 06035_ Acquired Hvy. Assault Rifle. 06037_ Dropped Shotgun. 06038_ Acquired Lgt. Armor Plating. 06045_ Acquired 13 matter. 06054_ Acquired Imp. Treads. 06062_ Acquired 10 matter. 06125_ P-60 Hacker springs to life. 06125_ Y-45 Defender springs to life. 06125_ Critical hit (Burn: +37). 06127_ S-10 Pest destroyed. Map ----- +----------------------------------------------------+ | ?????????????????????????????????????????? | | ?????????????????????????????????????????? | | ?????????????????????????????????????????? | | ?????????????????????????????????????????? | | ?????????????????????????????????????????? | | ?????????????????????????????????????????? | | ?????????????????????????????????????????? | | ?????????????????????????????????????????? | | ?????????????????????????????????????????? | | ?????????????????????????????????????????? | | ?????????????????????????????????????????? | | ?????????????????????????????????????????? | | ?????????????????????????????????????????? | | ?????????????????????????????????????????? | | ??????????????????????????? ?????????????? | | ????????????????#????????????????????????? | | ?????????????????????????????????????????? | | ???##########?????????#??? ??????????????? | | ???# / g ???????????"???????????????? | | ???# ???????????????????????????? | | ???# ??????????????????????????? | | ???# ??????????????????????????? | | ???# % ]Y #####????????????????????? | | ???# p# #??????????"?????????? | | ???# % ! ip= #????????????????????? | | ???# [ ![ #@ ###########??????????? | | ???# ! # ## ! * #??????????? | | ???# ]?# ## #??????????? | | ???# ?# ## [ ! #??????????? | | ???# ! ??# ## %[ [ #??????????? | | ???###########??# ## #??????????? | | ????????????????# ## [#??????????? | | ??### ########?## ## ][ #??????????? | | ??# # # #?????? ???? | | ??# # # #??????????? | | ??# + + % ! #??????????? | | ??# # # #??????????? | | ??# # # #??????????? | | ??# ?## ## % #?? ???????? | | ??# ?## ## #??????????? | | ??# ? ?# ## [ !#??????????? | | ??# ???# ##* #??????????? | | ??# ????# ## %#??????????? | | ??? ??# ## ! #??????????? | | ???########?????# ###########??????????? | | ???????????????## ????????? | | ???????????????## #######???+??????????? | | ????????######### ##???? ????? ???????? | | ????#????# ##???????????????????? | | ??#??????# [ #??#?????????????????? | +----------------------------------------------------+ Best States ------------- Heat Dissipation 25 Energy Generation 12 Energy Capacity 265 Matter Stores 300 Matter Capacity 300 Sight Range 16 Terrain Scan Range 16 Terrain Scan Density 10 Evasion (%) 40 Recoil Reduction 2 Item Schematics ----------------- None Robot Schematics ------------------ None Fabricated ------------ Nothing Alien Tech Used ----------------- None Achievements -------------- None Challenges ------------ None Game ------ Seed CommInsulationMembrane Manual? 0 Play Time 00:20:33 Cumulative 291.3 hours Start 2024.10.03 @ 16:14:59 End 2024.10.03 @ 16:38:28 Sessions 1 Manual Loads 0 Difficulty Rogue Special Mode None Game No. 233 Rogue 233 Adventurer 0 Explorer 0 Win Type - Total 2 Types 1/0/0/1/0/0/0/0/0 Lore% 73 Gallery% 78 Achievement% 58 Wizard Run 0 Options --------- Layout 2 ASCII 0 Keyboard 1 Movement Vi Keybinds 0 Fullscreen 1 Font 32/SmallcapsGlow Map View 77x44 Zoom Use 0% Tactical HUD 1 Map Filters NONE Filters NONE Steam 1 RUN: 76c04f75-8694-4c42-b8a8-2d5f574af5d8